Cogmind - Beta 14 @@@ ROGUE MODE // 2024.08.30 @ 22:16:06 Player: Lunace Result: Self-destructed Performance ------------- Evolutions (3) 1500 Regions Visited (6) 1200 Robots Destroyed (22) 110 Value Destroyed (728) 728 Prototype IDs (23) 460 Alien Tech Used (0) 0 Bonus (261) 261 TOTAL SCORE: 4259 Bonus ------- Follower Combat Kills 276 Friendly Fire -15 Cogmind --------- Core Integrity 577/700 Matter 61/300 Energy 290/290 System Corruption 1% Temperature Cool (0) Movement Walking (130) Location -7/Factory Parts ------- > --- POWER (1) -------- Improved Deuterium Engine > --- PROPULSION (4) --- Improved Titanium Leg Improved Titanium Leg Improved Titanium Leg Improved Titanium Leg > --- UTILITY (5) ------ Large Storage Unit Hardened Medium Armor Plating Hardened Medium Armor Plating Hacking Suite System Shield > --- WEAPON (3) ------- Autogun Autogun Gauss Rifle > --- INVENTORY (15) --- Improved Deuterium Engine Improved Titanium Leg Wheel Armored Wheel Improved Heat Sink Improved Sensor Array Kinecellerator Reaction Control System Autogun Makeshift Shrapnel Gun Field Lobotomy Kit (5) Powered Hammer Makeshift Sword Peak State ------------ > --- POWER ------------ Improved Deuterium Engine > --- PROPULSION ------- Improved Titanium Leg Improved Titanium Leg Improved Titanium Leg Makeshift Leg > --- UTILITY ---------- Large Storage Unit Hardened Medium Armor Plating Hardlight Generator Hacking Suite System Shield > --- WEAPON ----------- Autogun Autogun Powered Hammer > --- INVENTORY -------- Improved Deuterium Engine Carbon-fiber Leg Titanium Leg Wheel Armored Wheel Improved Heat Sink Improved Sensor Array Kinecellerator Reaction Control System Hardened Medium Armor Plating Autogun Autogun Makeshift Shrapnel Gun Field Lobotomy Kit Makeshift Sword [Rating: 46] Favorites ----------- Power Light Ion Engine Engine Light Ion Engine Propulsion Light Treads Treads Light Treads Leg Aluminum Leg Wheel Compact Wheel Utility Large Storage Unit Device Seismic Detector Storage Large Storage Unit Processor Signal Interpreter Hackware Hacking Suite Protection Hardened Medium Armor Plating Weapon Autogun Energy Gun Medium Laser Ballistic Gun Autogun Impact Weapon Powered Hammer Build | -11 -10 -10 -10 -9 -8 -7 ------- Run | Yrd Mat Min Exi Min Mat Fac Slots Evolved 6 | . . . . . 4 2 Power . | . . . . . . . Propulsion 2 | . . . . . 1 1 Utility 3 | . . . . . 2 1 Weapon 1 | . . . . . 1 . Parts Attached 46 | 7 8 . . 1 13 17 Power 5 | 1 1 . . 1 1 1 Engine 5 | 1 1 . . 1 1 1 Core . | . . . . . . . Reactor . | . . . . . . . Propulsion 14 | 2 . . . . 6 6 Treads 2 | 2 . . . . . . Leg 10 | . . . . . 4 6 Wheel 2 | . . . . . 2 . Hover . | . . . . . . . Flight . | . . . . . . . Utility 17 | 2 4 . . . 6 5 Device 9 | 1 2 . . . 4 2 Storage 2 | 1 1 . . . . . Processor 1 | . 1 . . . . . Hackware 2 | . . . . . 1 1 Protection 3 | . . . . . 1 2 Artifact . | . . . . . . . Weapon 10 | 2 3 . . . . 5 Energy Gun 3 | 2 1 . . . . . Energy Cannon . | . . . . . . . Ballistic Gun 6 | . 2 . . . . 4 Ballistic Cannon . | . . . . . . . Launcher . | . . . . . . . Special Weapon . | . . . . . . . Impact Weapon 1 | . . . . . . 1 Slashing Weapon . | . . . . . . . Piercing Weapon . | . . . . . . . Special Melee Weapon . | . . . . . . . Unidentified Prototypes . | . . . . . . . Parts Lost 3 | . 1 . . . 1 1 Power 1 | . 1 . . . . . Propulsion 1 | . . . . . 1 . Utility 1 | . . . . . . 1 Weapon . | . . . . . . . Highest Loss Streak 1 | . 1 . . . 1 1 To Critical Strikes . | . . . . . . . Average Slot Usage (%) 95 | . 99 100 100 100 78 99 Engine 11 | . 14 14 14 14 9 7 Treads 19 | . 28 28 28 28 13 . Leg 6 | . . . . . 5 29 Device 13 | . 12 14 14 14 17 9 Storage 11 | . 14 14 14 14 9 7 Hackware 3 | . . . . . 5 11 Protection 1 | . . . . . . 7 Energy Gun 6 | . 26 . . . . . Ballistic Gun 18 | . 1 28 28 28 18 21 Peak Build Rating 46 | 7 10 9 12 12 24 46 Average Rating 15 | 5 7 9 10 12 16 37 On Entrance 10 | . 7 9 9 12 12 24 Naked Turns . | . . . . . . . Heaviest Build 56 | 13 30 30 30 32 35 56 Greatest Support 80 | 40 40 40 40 40 47 80 Greatest Overweight (x) 1 | . . . . . 1 . Average Overweight (x) . | . . . . . . . Largest Inventory Capacity 15 | 8 15 15 15 15 15 15 Average Capacity 13 | 7 8 15 15 15 15 15 Most Carried 15 | 1 6 5 9 11 15 15 Average Carried 8 | . 1 5 6 9 12 13 Final Capacity 15 | 8 15 15 15 15 15 15 Final Carried 15 | 1 5 5 9 11 15 13 Class Distribution -------------------- 42% | Mutant 39% | Commander-Mutant 7% | Hacker-Tank 5% | Scavenger-Tank Dominant Class ---------------- Mutant | -10/Materials Mutant | -10/Mines Commander-Mutant | -10/Exiles Commander-Mutant | -9/Mines Mutant | -8/Materials Hacker-Tank | -7/Factory Resources | -11 -10 -10 -10 -9 -8 -7 ----------- Run | Yrd Mat Min Exi Min Mat Fac Matter Collected 1024 | 270 40 40 . 34 189 451 Remotely . | . . . . . . . Salvage Created 705 | 25 208 . . . 91 381 Parts 40 | 2 11 . . . 2 25 Haulers Intercepted . | . . . . . . . Recyclers Shooed 1 | . . . . . 1 . Parts Field Recycled . | . . . . . . . Retrieved Matter . | . . . . . . . Parts Self-Destructed . | . . . . . . . Prevented . | . . . . . . . Kills | -11 -10 -10 -10 -9 -8 -7 ------- Run | Yrd Mat Min Exi Min Mat Fac Combat Hostiles Destroyed 18 | . 4 . . . 2 12 Guns 15 | . 4 . . . 2 9 AOE 3 | . . . . . . 3 Classes Destroyed 9 | 1 2 . . . 1 5 Worker 1 | . . . . . . 1 Builder 1 | . . . . . . 1 Tunneler 1 | 1 . . . . . . Watcher 1 | . 1 . . . . . Swarmer 8 | . . . . . . 8 Grunt 6 | . 4 . . . 1 1 Duelist 1 | . . . . . 1 . Hunter 2 | . . . . . . 2 Programmer 1 | . . . . . . 1 Best Kill Streak 4 | 1 2 . . . 2 4 Combat Bots Only 4 | . 2 . . . 2 4 Max Kills in Single Turn 3 | 1 1 . . . 1 3 Gunslinging . | . . . . . . . Exploded 3 | . . . . . . 3 Melee . | . . . . . . . Uniques/NPCs Destroyed . | . . . . . . . Combat | -11 -10 -10 -10 -9 -8 -7 -------- Run | Yrd Mat Min Exi Min Mat Fac Hostile Shots Fired 116 | . 38 . . 2 2 74 Missed 36 | . 17 . . 1 . 18 Damage Taken 1208 | . 356 . . 11 70 771 Core 152 | . 29 . . . . 123 Absorbed by Shields 20 | . . . . . . 20 Regen/Repaired (Parts) 16 | . . . . . 16 . Core Remaining (%) 96 | 100 . . . 88 100 . Volleys Fired 83 | 1 26 . . 3 13 40 Largest 3 | 2 2 . . 2 2 3 Hottest 115 | 100 115 . . 46 46 69 Shots Fired 204 | 2 50 . . 6 26 120 Gun 204 | 2 50 . . 6 26 120 Cannon . | . . . . . . . Launcher . | . . . . . . . Special . | . . . . . . . Kinetic 152 | . . . . 6 26 120 Thermal 52 | 2 50 . . . . . Explosive . | . . . . . . . Electromagnetic . | . . . . . . . Robot Hit Streak 12 | 2 12 . . 3 4 12 Robot Miss Streak 7 | . 3 . . 1 2 7 Penetration Max . | . . . . . . . Secondary Targets 4 | . . . . . . 4 Max Gunslinging Chain 1 | . . . . . . 1 Shots Hit Robots 124 | 2 33 . . 5 17 67 Core Hits 53 | 1 11 . . 2 9 30 Critical Kills 2 | . . . . . . 2 Critical Parts Destroyed 1 | . . . . . . 1 Critical Strikes 6 | . 3 . . . . 3 Burn 3 | . 3 . . . . . Destroy 3 | . . . . . . 3 Melee Attacks 4 | . . . . . . 4 Impact 4 | . . . . . . 4 Slashing . | . . . . . . . Piercing . | . . . . . . . Sneak Attacks . | . . . . . . . Combat Hostiles . | . . . . . . . Follow-up Attacks . | . . . . . . . Damage Inflicted 2125 | 25 416 . . 74 280 1330 Guns 1857 | 25 416 . . 74 280 1062 Cannons . | . . . . . . . Explosions 268 | . . . . . . 268 Melee . | . . . . . . . Ramming . | . . . . . . . Kinetic 1416 | . . . . 74 280 1062 Thermal 441 | 25 416 . . . . . Explosive 268 | . . . . . . 268 Electromagnetic . | . . . . . . . Impact . | . . . . . . . Slashing . | . . . . . . . Piercing . | . . . . . . . Highest Corruption 1 | . . . . . . 1 Average Corruption 1 | . . . . . . 1 Corruption Purged . | . . . . . . . Corruption Blocked . | . . . . . . . Effects 1 | . . . . . . 1 Matter Fused 1 | . . . . . . 1 Overload Shots . | . . . . . . . Overflow Damage 15 | . . . . . . 15 Projectiles . | . . . . . . . Explosions 15 | . . . . . . 15 Melee . | . . . . . . . Knockbacks . | . . . . . . . Impact . | . . . . . . . Kinetic . | . . . . . . . Secondary . | . . . . . . . Self-Inflicted Damage . | . . . . . . . Shots . | . . . . . . . Rammed . | . . . . . . . Targets Rammed . | . . . . . . . Kicked . | . . . . . . . Crushed . | . . . . . . . Highest Temperature 309 | 39 309 . . 12 6 211 Average Temperature 87 | 20 126 . . 7 5 64 Received Heat Transfer 240 | . 192 . . 6 33 9 Effects 3 | . 3 . . . . . Interference 3 | . 3 . . . . . Siege Activations . | . . . . . . . Robots Corrupted . | . . . . . . . Combat Hostiles . | . . . . . . . Parts Fried . | . . . . . . . Impact Corruptions . | . . . . . . . Robots Melted . | . . . . . . . Combat Hostiles . | . . . . . . . Parts Melted 1 | . 1 . . . . . Heat Transferred 1517 | 74 1443 . . . . . Parts Sabotaged . | . . . . . . . Parts Stolen . | . . . . . . . Parts Stripped . | . . . . . . . Power Chain Reactions . | . . . . . . . Alert | -11 -10 -10 -10 -9 -8 -7 ------- Run | Yrd Mat Min Exi Min Mat Fac Peak Influence 379 | 5 136 52 . 76 97 379 Initial 52 | . 3 52 . . . 44 Average 84 | 1 44 52 . 74 35 209 Maximum Alert Level 1 | . . . . . . 1 Low Security (%) 85 | 100 100 100 . 100 100 40 Level 1 14 | . . . . . . 59 Level 2 . | . . . . . . . Level 3 . | . . . . . . . Level 4 . | . . . . . . . Level 5 . | . . . . . . . High Security . | . . . . . . . Max Security . | . . . . . . . Squads Dispatched 5 | . . . . . . 5 Investigation . | . . . . . . . Extermination 1 | . . . . . . 1 Reinforcement 1 | . . . . . . 1 Assault . | . . . . . . . Garrison 3 | . . . . . . 3 Intercept . | . . . . . . . Searches Triggered . | . . . . . . . Construction Impeded . | . . . . . . . Haulers Reinforced . | . . . . . . . Active Scanning Responses . | . . . . . . . Cargo Convoy Interrupts . | . . . . . . . Stealth | -11 -10 -10 -10 -9 -8 -7 --------- Run | Yrd Mat Min Exi Min Mat Fac Distress Signals 7 | . 2 . . . 2 3 Communications Jammed . | . . . . . . . Distress Signals . | . . . . . . . Times Spotted 39 | . 8 . . 3 10 18 Peak Tracking Total 5 | . 3 . . 3 4 5 Tactical Retreats 1 | . 1 . . . . . Traps | -11 -10 -10 -10 -9 -8 -7 ------- Run | Yrd Mat Min Exi Min Mat Fac Traps Triggered 1 | . 1 . . . . . Indirectly . | . . . . . . . Trap Hack Attempts . | . . . . . . . Triggered . | . . . . . . . Disarmed . | . . . . . . . Reprogrammed . | . . . . . . . Reused . | . . . . . . . Traps Extracted . | . . . . . . . Installed . | . . . . . . . Triggered . | . . . . . . . Machines | -11 -10 -10 -10 -9 -8 -7 ---------- Run | Yrd Mat Min Exi Min Mat Fac Machines Disabled 1 | . . . . . . 1 Max in Single Turn 1 | . . . . . . 1 Machines Repaired . | . . . . . . . Machines Dismantled . | . . . . . . . Machines Sabotaged . | . . . . . . . Overloaded Fab Kills . | . . . . . . . Hacking | -11 -10 -10 -10 -9 -8 -7 --------- Run | Yrd Mat Min Exi Min Mat Fac Machines Accessed 11 | . 3 . 2 . 3 3 Terminals 5 | . 1 . . . 2 2 Fabricators . | . . . . . . . Repair Stations 2 | . 1 . . . 1 . Recycling Units 1 | . 1 . . . . . Scanalyzers . | . . . . . . . Garrison Access 1 | . . . . . . 1 Total Hacks 29 | . 9 . 2 . 11 7 Successful 15 | . 3 . 2 . 7 3 Failed 14 | . 6 . . . 4 4 Catastrophic 1 | . 1 . . . . . Database Lockouts . | . . . . . . . Manual 15 | . 4 . 1 . 6 4 Terminals 18 | . 4 . . . 9 5 Fabricators . | . . . . . . . Repair Stations 6 | . 4 . . . 2 . Recycling Units 1 | . 1 . . . . . Scanalyzers . | . . . . . . . Garrison Access 2 | . . . . . . 2 Terminal Hacks 4 | . . . 2 . 1 1 Record 1 | . . . 1 . . . Branch Access Points 2 | . . . . . 1 1 Derelict Proto ID Bank 1 | . . . 1 . . . Fabricator Hacks . | . . . . . . . Repair Station Hacks 3 | . 1 . . . 2 . Scan Component 2 | . 1 . . . 1 . Repair 1 | . . . . . 1 . Recycling Unit Hacks . | . . . . . . . Scanalyzer . | . . . . . . . Garrison Access Hacks . | . . . . . . . Unauthorized Hacks 8 | . 2 . . . 4 2 Terminals 8 | . 2 . . . 4 2 Botnet 4 | . 1 . . . 2 1 Skim 4 | . 1 . . . 2 1 Fabricators . | . . . . . . . Repair Stations . | . . . . . . . Recycling Units . | . . . . . . . Scanalyzers . | . . . . . . . Garrison Access . | . . . . . . . Data Cores Recovered . | . . . . . . . Used . | . . . . . . . Hacking Detections 9 | . 3 . . . 3 3 Full Trace Events . | . . . . . . . Feedback Events . | . . . . . . . Feedback Blocked . | . . . . . . . Robot Schematics Acquired . | . . . . . . . Robots Built . | . . . . . . . Authchips . | . . . . . . . Time . | . . . . . . . Total Robot Build Rating . | . . . . . . . Part Schematics Acquired . | . . . . . . . Parts Built . | . . . . . . . Authchips . | . . . . . . . Time . | . . . . . . . Total Part Build Rating . | . . . . . . . Parts Repaired 1 | . . . . . 1 . Time 26 | . . . . . 26 . Parts Recycled . | . . . . . . . Recycled Matter . | . . . . . . . Retrieved Matter . | . . . . . . . Retrieved Components . | . . . . . . . Parts Scanalyzed . | . . . . . . . Part Schematics Acquired . | . . . . . . . Parts Damaged . | . . . . . . . Bothacking | -11 -10 -10 -10 -9 -8 -7 ------------ Run | Yrd Mat Min Exi Min Mat Fac Used RIF Installer . | . . . . . . . Robots Hacked . | . . . . . . . Non-combat . | . . . . . . . Combat . | . . . . . . . Robot Hacks Applied . | . . . . . . . Relay Couplers Released . | . . . . . . . Fabnet Peak Effective % . | . . . . . . . Robots Rewired 4 | . . . 4 . . . Allies Hacked . | . . . . . . . Hacks Repelled . | . . . . . . . Allies | -11 -10 -10 -10 -9 -8 -7 -------- Run | Yrd Mat Min Exi Min Mat Fac Total Allies 7 | . . 3 4 . . . Largest Group 7 | . . 3 7 7 6 2 Highest-Rated Group 85 | . . 40 85 85 77 32 Highest-Rated Ally 21 | . . 16 21 21 21 16 Total Orders 9 | . . . 9 . . . STAY 5 | . . . 5 . . . FOLLOW 4 | . . . 4 . . . Ally Attacks 74 | . . . . 19 37 18 Total Damage 722 | . . . . 184 403 135 Kills 10 | . . . . 3 4 3 Allies Corrupted . | . . . . . . . Allies Melted . | . . . . . . . Intel | -11 -10 -10 -10 -9 -8 -7 ------- Run | Yrd Mat Min Exi Min Mat Fac Robot Analysis Total . | . . . . . . . Derelict Logs Recovered 3 | . . 1 . 2 . . Drone Launches . | . . . . . . . Drone Recoveries . | . . . . . . . Exploration | -11 -10 -10 -10 -9 -8 -7 ------------- Run | Yrd Mat Min Exi Min Mat Fac Turns Passed 3284 | 112 794 84 686 402 592 614 Spaces Moved 1684 | 60 284 53 413 229 306 339 Core 3 | 3 . . . . . . Treads 1262 | 57 284 53 413 229 226 . Legs 407 | . . . . . 68 339 Wheels 12 | . . . . . 12 . Hover . | . . . . . . . Flight . | . . . . . . . Fastest Speed 50 | 50 160 160 160 160 110 127 Average Speed 151 | 154 160 160 160 160 150 127 Slowest Speed 160 | 160 160 160 160 160 160 132 Overloaded Moves . | . . . . . . . Propulsion Burnouts . | . . . . . . . Robots Hopped . | . . . . . . . Cave-ins Triggered . | . . . . . . . Exploration Rate (%) 37 | 4 42 17 88 68 30 15 Regions Visited 6 Branch Regions 3 Pre-discovered Areas 1 | . . . 1 . . . Known Exits Taken 1 | . . . . . 1 . Unknown Exits Taken 5 | 1 1 1 1 1 . . Scrap Searched 4 | . . 1 . 3 . . Spaces Dug 4 | . . . . . . 4 Terrain Destroyed 13 | . . . . . . 13 Melee 4 | . . . . . . 4 Projectile . | . . . . . . . AOE 9 | . . . . . . 9 Terrain Rammed . | . . . . . . . Walls Destroyed . | . . . . . . . Machines Disabled . | . . . . . . . Actions | -11 -10 -10 -10 -9 -8 -7 --------- Run | Yrd Mat Min Exi Min Mat Fac Total 2266 | 74 574 52 438 260 417 451 Wait 380 | 6 246 . 6 25 69 28 Move 1678 | 59 283 52 412 228 305 339 Hop . | . . . . . . . Pick Up 27 | 1 4 . 4 2 9 7 Fast Attach 16 | 7 4 . . . 3 2 Attach 15 | . 2 . . . 8 5 Detach 6 | . 2 . . . 3 1 Swap 15 | . 2 . . 1 2 10 Drop 26 | . 5 . . 1 5 15 Fire 83 | 1 26 . . 3 13 40 Melee 4 | . . . . . . 4 Ram . | . . . . . . . Kick . | . . . . . . . Crush . | . . . . . . . Escape Stasis . | . . . . . . . Rewire 16 | . . . 16 . . . Trap . | . . . . . . . Miscellaneous . | . . . . . . . Route ------- -11/Scrapyard -10/Materials (discovered 2 exits: *Mat / [*Min]) -10/Mines -10/Exiles -9/Mines -8/Materials -7/Factory (discovered 2 exits: Low x2) History --------- Turn | Location | Event 2 | -11/Scrapyard | Met Revision 17 11 | -11/Scrapyard | Discovered new exit (range 15) 113 | -11/Scrapyard | Entered Materials 311 | -10/Materials | Build established: Mutant 784 | -10/Materials | Discovered new exit (range 3) 797 | -10/Materials | Identified exit to Materials 878 | -10/Materials | Discovered new exit (range 9) 907 | -10/Materials | Entered Mines 954 | -10/Mines | Assisted by bots powering up and referring to "LRC-V3" 978 | -10/Mines | Learned 2 Materials zone layouts 984 | -10/Mines | Deemed a non-threat by the Exiles lab entrance 984 | -10/Mines | Discovered new exit (range 5) 991 | -10/Mines | Entered Exiles 991 | -10/Exiles | Found Exiles lab destroyed 991 | -10/Exiles | Accompanied by 3 allies 1331 | -10/Exiles | Build established: Commander-Mutant 1441 | -10/Exiles | Opened EX-Vault 1449 | -10/Exiles | Found Field Lobotomy Kit 1537 | -10/Exiles | Learned location of Zion (-7) 1653 | -10/Exiles | Discovered new exit (range 14) 1677 | -10/Exiles | Entered Mines 1677 | -9/Mines | Accompanied by 7 allies 1689 | -9/Mines | Met a Derelict bent on vengeance 2009 | -9/Mines | Learned Materials emergency access door positions 2041 | -9/Mines | Discovered new exit (range 10) 2062 | -9/Mines | Learned location of 1 exit from Materials 2079 | -9/Mines | Entered Materials 2079 | -8/Materials | Accompanied by 6 allies 2079 | -8/Materials | Evolved 4 slots: Propulsion x1, Utility x2, Weapon x1 2080 | -8/Materials | Identified exit to Factory 2366 | -8/Materials | Lost 3 allies 2598 | -8/Materials | Repaired Seismic Detector 2637 | -8/Materials | Build established: Mutant 2671 | -8/Materials | Entered Factory 2671 | -7/Factory | Accompanied by 2 allies 2671 | -7/Factory | Evolved 2 slots: Propulsion x1, Utility x1 2864 | -7/Factory | Garrison activated, responded to threat 3285 | -7/Factory | Identified exit to Lower Caves 3285 | -7/Factory | Self-destructed Last Messages --------------- 03224_ W-25 Informer sends out distress signal. 03226_ Destroyed Gravmag System. 03226_ Destroyed Shock Rifle. 03227_ Slug penetrates Wall. 03228_ P-60 Hacker suffers critical hit (Destroy). 03228_ Destroyed Shock Rifle. 03228_ Destroyed Imp. Heat Sink. 03230_ Slug penetrates Wall. 03239_ Penetrated by Slug. 03249_ H-55 Commando destroyed. 03252_ System corrupted: Matter fused (-5). 03252_ Acquired 48 matter. 03256_ Dropped Autogun. 03285_ Connecting with Terminal... >>Access(Branch) Found 2 branch access points: (8,128) Lower Caves (83,31) Lower Caves Map updated. Map ----- +----------------------------------------------------+ | """ """ #???# #????????????????????? | | #???# #????????????????????? | | #???# = #????????????????????? | | ########+####### #????????????????????? | | ?????# # #????????????????????? | | ?????# ###########????????????????????? | | ????# ==! #??????????????????????????????? | | ????# = ! #??????????????????????????????? | | ???# ==!! #??????????????????????????????? | | ???# ! = #??????????????????????????????? | | ??# #??????????????????????????????? | | ### #??????????????????????????????? | | / * #????????????? ????????????????? | | ### #???????????? ????????????????? | | ??# #???????????? ????????????????? | | ???# #??????????? ???????????????? | | ???##############????####### ????????????????? | | #????#########????????? ????????????????? | | ???????# #????????? ????????????????? | | ???????# #????????#" ????????????????? | | ???????# #?###??###"" ?????????????????? | | ?#?????# # ??? #"" """"?????????????????? | | ?# ????# + ????? #"" """"?????????????????? | | ?# #####=! # ?? #"" """" ??????????????? | | ?# #%! # """" #"T """" #?????????????? | | ?# #|* # """" #""@ """" #?????????????? | | ?+ #= # """" #"" """" #?????????????? | | ?# + # """" #"" #?????????????? | | ?+ # #? #"" """ #?????????????? | | ?# # #??? #" """ #?????????????? | | ?# ############+###t """ #?????????????? | | ?# [ [ #?????????????? | | ?# = #?????????????? | | ?# #?????????????? | | ?# r #?????????????? | | ?# #?????????????? | | ?############### T############ #?????????????? | | ???????????????####??????????? #?????????????? | | ?????????????????????????????? ????????????? | | ??????????????????????????????? ???????????? | | ??????????????????????????????? ???????????? | | ???????????????????????????????? ???????????? | | ????????????????????????????????? ????????????? | | ?????????????????????????????????????????????????? | | ?????????????????????????????????????????????????? | | ?????????????????????????????????????????????????? | | ?????????????????????????????????????????????????? | | ?????????????????????????????????????????????????? | | ?????????????????????????????????????????????????? | | ?????????????????????????????????????????????????? | +----------------------------------------------------+ Best States ------------- Heat Dissipation 45 Energy Generation 16 Energy Capacity 290 Matter Stores 300 Matter Capacity 300 Sight Range 16 Terrain Scan Density 10 Armor Coverage 450 Evasion (%) 55 Recoil Reduction 2 Kinecelleration 30 Offensive Hacking 10 Defensive Hacking 10 Item Schematics ----------------- None Robot Schematics ------------------ None Fabricated ------------ Nothing Alien Tech Used ----------------- None Achievements -------------- None Challenges ------------ None Game ------ Seed EtherialVoltaicSpear Manual? 0 Play Time 00:26:30 Cumulative 321.6 hours Start 2024.08.30 @ 21:15:52 End 2024.08.30 @ 22:16:06 Sessions 1 Manual Loads 0 Difficulty Rogue Special Mode None Game No. 322 Rogue 317 Adventurer 5 Explorer 0 Win Type - Total 5 Types 4/0/0/1/0/0/0/0/0 Lore% 72 Gallery% 81 Achievement% 66 Wizard Run 0 Options --------- Layout 1 ASCII 0 Keyboard 0 Movement Mouse Keybinds 0 Fullscreen 1 Font 24/Terminus Map View 50x35 Zoom Use 0% Tactical HUD 1 Map Filters NONE Filters NONE Steam 1 RUN: 37bb2e46-fb6d-4d5c-80b8-b894828f4f07